fUSD/lending_fUSD_20241206
["ID","MTS","AMOUNT","RATE_DAILY","PERIOD"]
[344466668,1733500274502,-511.07,9.589e-05,2]
[344466669,1733500274512,-1740.66,9.589e-05,2]
[344466670,1733500274521,-511.07,9.589e-05,2]
[344466671,1733500274530,-511.07,9.589e-05,2]
[344466672,1733500274542,-1740.66,9.589e-05,2]
[344466673,1733500274551,-1740.66,9.589e-05,2]
[344466674,1733500274565,-511.07,9.589e-05,2]
[344466675,1733500274575,-1740.66,9.589e-05,2]
[344466676,1733500274584,-511.07,9.589e-05,2]
[344466677,1733500274593,-1740.66,9.589e-05,2]
[344466678,1733500274604,-511.07,9.589e-05,2]
[344466679,1733500274614,-500.0,9.589e-05,2]
[344466680,1733500274626,-500.0,9.589e-05,2]
[344466681,1733500274636,-1740.66,9.589e-05,2]
[344466682,1733500274646,-598.65222318,9.589e-05,2]
[344466683,1733500274656,-1740.66,9.589e-05,2]
[344466684,1733500274666,-1740.66,9.589e-05,2]
[344466685,1733500274675,-511.07,9.589e-05,2]
[344466686,1733500274685,-1740.66,9.589e-05,2]
[344466687,1733500274695,-511.07,9.589e-05,2]
[344466688,1733500274705,-1740.66,9.589e-05,2]
[344466689,1733500274714,-500.0,9.589e-05,2]
[344466690,1733500274724,-1740.66,9.589e-05,2]
[344466691,1733500274733,-511.07,9.589e-05,2]
[344466692,1733500274743,-500.0,9.589e-05,2]
[344466693,1733500274753,-500.0,9.589e-05,2]
[344466694,1733500274763,-500.0,9.589e-05,2]
[344466695,1733500274772,-1740.66,9.589e-05,2]
[344466696,1733500274781,-500.0,9.589e-05,2]
[344466697,1733500274791,-500.0,9.589e-05,2]
[344466698,1733500274800,-500.0,9.589e-05,2]
[344466699,1733500274809,-511.07,9.589e-05,2]
[344466700,1733500274818,-500.0,9.589e-05,2]
[344466701,1733500274827,-500.0,9.589e-05,2]
[344466702,1733500274837,-500.0,9.589e-05,2]
[344466703,1733500274846,-1740.66,9.589e-05,2]
[344466704,1733500274855,-500.0,9.589e-05,2]
[344466705,1733500274865,-500.0,9.589e-05,2]
[344466706,1733500274876,-500.0,9.589e-05,2]
[344466707,1733500274885,-511.07,9.589e-05,2]
[344466708,1733500274894,-412.85282573,9.589e-05,2]
[344466709,1733500274904,-500.0,9.589e-05,2]
[344466710,1733500274913,-500.0,9.589e-05,2]
[344466711,1733500274923,-1740.66,9.589e-05,2]
[344466712,1733500274932,-500.0,9.589e-05,2]
[344466713,1733500274942,-1144.34,9.589e-05,2]
[344466714,1733500274951,-296.76211154,9.589e-05,2]
[344466715,1733500274961,-500.0,9.589e-05,2]
[344466716,1733500274971,-500.0,9.589e-05,2]
[344466717,1733500274980,-511.07,9.589e-05,2]
[344466718,1733500274990,-500.0,9.589e-05,2]
[344466719,1733500274999,-500.0,9.589e-05,2]
[344466720,1733500275009,-1740.66,9.589e-05,2]
[344466721,1733500275019,-1144.34,9.589e-05,2]
[344466722,1733500275029,-500.0,9.589e-05,2]
[344466723,1733500275038,-500.0,9.589e-05,2]
[344466724,1733500275047,-500.0,9.589e-05,2]
[344466725,1733500275057,-511.07,9.589e-05,2]
[344466726,1733500275066,-500.0,9.589e-05,2]
[344466727,1733500275076,-500.0,9.589e-05,2]
[344466728,1733500275086,-1144.34,9.589e-05,2]
[344466729,1733500275095,-1740.66,9.589e-05,2]
[344466730,1733500275104,-500.0,9.589e-05,2]
[344466731,1733500275114,-500.0,9.589e-05,2]
[344466732,1733500275127,-511.07,9.589e-05,2]
[344466733,1733500275137,-500.0,9.589e-05,2]
[344466734,1733500275147,-500.0,9.589e-05,2]
[344466735,1733500275157,-500.0,9.589e-05,2]
[344466736,1733500275167,-500.0,9.589e-05,2]
[344466737,1733500275177,-1144.34,9.589e-05,2]
[344466738,1733500275186,-500.0,9.589e-05,2]
[344466739,1733500275195,-500.0,9.589e-05,2]
[344466740,1733500275205,-1740.66,9.589e-05,2]
[344466741,1733500275215,-511.07,9.589e-05,2]
[344466742,1733500275224,-433.87235845,9.589e-05,2]
[344466743,1733500275234,-500.0,9.589e-05,2]
[344466744,1733500275243,-500.0,9.589e-05,2]
[344466745,1733500275253,-500.0,9.589e-05,2]
[344466746,1733500275263,-500.0,9.589e-05,2]
[344466747,1733500275272,-1144.34,9.589e-05,2]
[344466748,1733500275282,-500.0,9.589e-05,2]
[344466749,1733500275291,-1740.66,9.589e-05,2]
[344466750,1733500275301,-511.07,9.589e-05,2]
[344466751,1733500275310,-500.0,9.589e-05,2]
[344466752,1733500275320,-500.0,9.589e-05,2]
[344466753,1733500275329,-1144.34,9.589e-05,2]
[344466754,1733500275339,-500.0,9.589e-05,2]
[344466755,1733500275349,-500.0,9.589e-05,2]
[344466756,1733500275358,-1740.66,9.589e-05,2]
[344466757,1733500275368,-511.07,9.589e-05,2]
[344466758,1733500275385,-500.0,9.589e-05,2]
[344466759,1733500275395,-1144.34,9.589e-05,2]
[344466760,1733500275404,-368.0,9.589e-05,2]
[344466761,1733500275414,-500.0,9.589e-05,2]
[344466762,1733500275423,-1740.66,9.589e-05,2]
[344466763,1733500275432,-522.05707245,9.589e-05,2]
[344466764,1733500275442,-500.0,9.589e-05,2]
[344466765,1733500275452,-511.07,9.589e-05,2]
[344466766,1733500275462,-624.07719584,9.589e-05,2]
[344466767,1733500275472,-1144.34,9.589e-05,2]
[344466768,1733500275481,-500.0,9.589e-05,2]
[344466769,1733500275491,-1740.66,9.589e-05,2]
[344466770,1733500275501,-532.5816729,9.589e-05,2]
[344466771,1733500275510,-511.07,9.589e-05,2]
[344466772,1733500275520,-1144.34,9.589e-05,2]
[344466773,1733500275530,-500.0,9.589e-05,2]
[344466774,1733500275541,-1740.71449281,9.589e-05,2]
[344466775,1733500275552,-511.07,9.589e-05,2]
[344466776,1733500275562,-1144.34,9.589e-05,2]
[344466777,1733500275572,-513.53,9.589e-05,2]
[344466778,1733500275583,-500.0,9.589e-05,2]
[344466779,1733500275592,-511.1597223,9.589e-05,2]
[344466780,1733500275602,-1144.34,9.589e-05,2]
[344466781,1733500275611,-513.53,9.589e-05,2]
[344466782,1733500275625,-500.0,9.589e-05,2]
[344466783,1733500275635,-1144.34,9.589e-05,2]
[344466784,1733500275644,-513.53,9.589e-05,2]
[344466785,1733500275654,-500.0,9.589e-05,2]
[344466786,1733500275663,-500.0,9.589e-05,2]
[344466787,1733500275795,-1144.34,9.589e-05,2]
[344466788,1733500275809,-500.0,9.589e-05,2]
[344466789,1733500275826,-500.0,9.589e-05,2]
[344466790,1733500275834,-500.0,9.589e-05,2]
[344466791,1733500275844,-1144.34,9.589e-05,2]
[344466792,1733500275853,-513.53,9.589e-05,2]
[344466793,1733500275863,-500.0,9.589e-05,2]
[344466794,1733500275876,-500.0,9.589e-05,2]
[344466795,1733500275886,-500.0,9.589e-05,2]
[344466796,1733500275896,-513.53,9.589e-05,2]
[344466797,1733500275906,-1144.34,9.589e-05,2]
[344466798,1733500275915,-545.36898727,9.589e-05,2]
[344466799,1733500275924,-199.25122554,9.589e-05,2]
[344466800,1733500275934,-500.0,9.589e-05,2]
[344466801,1733500275943,-513.53,9.589e-05,2]
[344466802,1733500275953,-1144.34,9.589e-05,2]
[344466803,1733500275963,-500.0,9.589e-05,2]
[344466804,1733500275972,-1144.34,9.589e-05,2]
[344466805,1733500275982,-513.53,9.589e-05,2]
[344466806,1733500275991,-1150.07,9.589e-05,2]
[344466807,1733500276001,-500.0,9.589e-05,2]
[344466808,1733500276011,-1144.34,9.589e-05,2]
[344466809,1733500276020,-513.53,9.589e-05,2]
[344466810,1733500276029,-1150.07,9.589e-05,2]
[344466811,1733500276039,-506.56710404,9.589e-05,2]
[344466812,1733500276049,-1144.34,9.589e-05,2]
[344466813,1733500276059,-513.53,9.589e-05,2]
[344466814,1733500276068,-1150.07,9.589e-05,2]
[344466815,1733500276078,-1144.34,9.589e-05,2]
[344466816,1733500276087,-513.53,9.589e-05,2]
[344466817,1733500276097,-1150.07,9.589e-05,2]
[344466818,1733500276106,-1541.1,9.589e-05,2]
[344466819,1733500276115,-600.54,9.589e-05,2]
[344466820,1733500276129,-500.0,9.589e-05,2]
[344466821,1733500276138,-1144.34,9.589e-05,2]
[344466822,1733500276148,-513.53,9.589e-05,2]
[344466823,1733500276157,-1150.07,9.589e-05,2]
[344466824,1733500276167,-1541.1,9.589e-05,2]
[344466825,1733500276177,-1105.98,9.589e-05,2]
[344466826,1733500276187,-600.54,9.589e-05,2]
[344466827,1733500276196,-1144.34,9.589e-05,2]
[344466828,1733500276206,-500.0,9.589e-05,2]
[344466829,1733500276215,-1150.07,9.589e-05,2]
[344466830,1733500276225,-1541.1,9.589e-05,2]
[344466831,1733500276235,-1105.98,9.589e-05,2]
[344466832,1733500276245,-600.54,9.589e-05,2]
[344466833,1733500276255,-500.0,9.589e-05,2]
[344466834,1733500276265,-1144.34,9.589e-05,2]
[344466835,1733500276274,-513.53,9.589e-05,2]
[344466836,1733500276284,-1541.1,9.589e-05,2]
[344466837,1733500276294,-1150.07,9.589e-05,2]
[344466838,1733500276303,-500.0,9.589e-05,2]
[344466839,1733500276312,-600.54,9.589e-05,2]
[344466840,1733500276322,-1144.35859378,9.589e-05,2]
[344466841,1733500276331,-513.53,9.589e-05,2]
[344466842,1733500276341,-1541.1,9.589e-05,2]
[344466843,1733500276352,-1150.07,9.589e-05,2]
[344466844,1733500276361,-500.0,9.589e-05,2]
[344466845,1733500276376,-600.54,9.589e-05,2]
[344466846,1733500276386,-513.53,9.589e-05,2]
[344466847,1733500276395,-1150.07,9.589e-05,2]
[344466848,1733500276404,-1541.1,9.589e-05,2]
[344466849,1733500276414,-600.54,9.589e-05,2]
[344466850,1733500276423,-500.0,9.589e-05,2]
[344466851,1733500276432,-513.53,9.589e-05,2]
[344466852,1733500276442,-1150.07,9.589e-05,2]
[344466853,1733500276452,-630.65749377,9.589e-05,2]
[344466854,1733500276462,-600.54,9.589e-05,2]
[344466855,1733500276471,-1541.1,9.589e-05,2]
[344466856,1733500276481,-513.53,9.589e-05,2]
[344466857,1733500276491,-600.54,9.589e-05,2]
[344466858,1733500276500,-1541.1,9.589e-05,2]
[344466859,1733500276510,-1150.07,9.589e-05,2]
[344466860,1733500276520,-1105.98,9.589e-05,2]
[344466861,1733500276530,-513.53,9.589e-05,2]
[344466862,1733500276541,-1541.1,9.589e-05,2]
[344466863,1733500276550,-1150.07,9.589e-05,2]
[344466864,1733500276563,-143.03897585,9.589e-05,2]
[344466865,1733500281596,-695.16061057,9.589e-05,2]
[344466866,1733500281608,-267.78041358,9.589e-05,2]
[344466867,1733500281617,-117.37358645,9.589e-05,2]
[344466868,1733500281634,-626.83315014,9.589e-05,2]
[344466869,1733500282923,-277.646552,9.563e-05,2]
[344466870,1733500283090,-223.97205762,9.563e-05,2]
[344466871,1733500283100,-19857.6491157,9.589e-05,2]
[344466872,1733500283112,-2019.13451719,9.589e-05,2]
[344466873,1733500283124,-60799.32294842,9.589e-05,2]
[344466874,1733500283139,-705.14190361,9.589e-05,2]
[344466875,1733500283177,-13964.90577245,9.589e-05,2]
[344466876,1733500283189,-9659.99973,9.589e-05,2]
[344466877,1733500283203,-20345.69445,9.589e-05,2]
[344466878,1733500283701,-722.88000006,9.589e-05,2]
[344466879,1733500283838,-19926.0,9.589e-05,2]
[344466880,1733500283850,-76071.6469424,9.589e-05,2]
[344466881,1733500283861,-1090.6670008,9.589e-05,2]
[344466882,1733500283873,-686.24633394,9.589e-05,2]
[344466883,1733500283886,-5476.4872401,9.589e-05,2]
[344466884,1733500283898,-604.88499846,9.589e-05,2]
[344466885,1733500283909,-9920.5,9.589e-05,2]
[344466886,1733500283920,-327.60936644,9.589e-05,2]
[344466887,1733500284644,-150.0,9.012e-05,2]
[344466888,1733500284655,-410.49294706,9.589e-05,2]
[344466889,1733500284667,-741.65,9.589e-05,2]
[344466890,1733500284678,-9980.20234908,9.589e-05,2]
[344466891,1733500284689,-2790.91300994,9.589e-05,2]
[344466892,1733500284701,-7181.67820833,9.589e-05,2]
[344466893,1733500284713,-9386.0,9.589e-05,2]
[344466894,1733500284724,-7789.45467116,9.589e-05,2]
[344466895,1733500284736,-27103.1670654,9.589e-05,2]
[344466896,1733500284747,-1070.9575651,9.589e-05,2]
[344466897,1733500284759,-3005.12743989,9.589e-05,2]
[344466898,1733500284778,-4864.24997962,9.589e-05,2]
[344466899,1733500285147,-250.0,7.5e-05,2]
[344466900,1733500285157,-6867.484186,9.589e-05,2]
[344466901,1733500285168,-26882.135436,9.589e-05,2]
[344466902,1733500285189,-3382.98340911,9.589e-05,2]
[344466903,1733500285200,-655.5723265,9.589e-05,2]
[344466904,1733500285211,-295.0060379,9.589e-05,2]
[344466905,1733500285222,-4821.081271,9.589e-05,2]
[344466906,1733500285234,-4031.90577183,9.589e-05,2]
[344466907,1733500285272,-2339.9999998,9.589e-05,2]
[344466908,1733500285284,-12000.0,9.589e-05,2]
[344466909,1733500285295,-21576.01391984,9.589e-05,2]
[344466910,1733500285324,-1336.47849863,9.589e-05,2]
[344466911,1733500285336,-1628.002282,9.589e-05,2]
[344466912,1733500285347,-2662.49585,9.589e-05,2]
[344466913,1733500285359,-4975.4811,9.589e-05,2]
[344466914,1733500285384,-2039.26649312,9.589e-05,2]
[344466938,1733501431604,-250.0,7.437e-05,2]
[344466939,1733501431614,-1122.5,7.467e-05,2]
[344466940,1733501431624,-400.0,7.484e-05,2]
[344466941,1733501431634,-246.9934464,7.484e-05,2]
[344466942,1733501431644,-300.0,7.499e-05,2]
[344466943,1733501431654,-150.0,7.5e-05,2]
[344466944,1733501431664,-217.71,7.5e-05,2]
[344466945,1733501431674,-1600.0,7.5e-05,2]
[344466946,1733501431684,-1206.03,7.5e-05,2]
[344466947,1733501431694,-498.95,7.501e-05,2]
[344466948,1733501431704,-508.11,7.501e-05,2]
[344466949,1733501431713,-504.85,7.501e-05,2]
[344466950,1733501431723,-498.64,7.501e-05,2]
[344466951,1733501431733,-494.57,7.501e-05,2]
[344466952,1733501431742,-507.97,7.501e-05,2]
[344466953,1733501431752,-508.77,7.501e-05,2]
[344466954,1733501431762,-497.83,7.501e-05,2]
[344466955,1733501431771,-501.75,7.501e-05,2]
[344466956,1733501431781,-491.15,7.501e-05,2]
[344466957,1733501431794,-494.34,7.501e-05,2]
[344466958,1733501431804,-503.29,7.501e-05,2]
[344466959,1733501431814,-495.36,7.501e-05,2]
[344466960,1733501431824,-490.62,7.502e-05,2]
[344466961,1733501431833,-499.91,7.502e-05,2]
[344466962,1733501431843,-495.18,7.503e-05,2]
[344466963,1733501431852,-507.99,7.505e-05,2]
[344466964,1733501431862,-498.21,7.507e-05,2]
[344466965,1733501431872,-150.99,7.507e-05,2]
[344466966,1733501431882,-494.83,7.51e-05,2]
[344466967,1733501431891,-508.9,7.514e-05,2]
[344466968,1733501431901,-504.78,7.521e-05,2]
[344466969,1733501431911,-250.0,7.526e-05,2]
[344466970,1733501431924,-499.04,7.531e-05,2]
[344466971,1733501431934,-509.6,7.546e-05,2]
[344466972,1733501431944,-494.47,7.569e-05,2]
[344466973,1733501431953,-492.02,7.604e-05,2]
[344466974,1733501431964,-504.26,7.656e-05,2]
[344466975,1733501431974,-22250.46851511,7.678e-05,2]
[344466976,1733501431984,-200.0,7.679e-05,2]
[344466977,1733501431994,-22250.46851511,7.68e-05,2]
[344466978,1733501432005,-9386.91640481,7.681e-05,2]
[344466979,1733501432015,-200.0,7.682e-05,2]
[344466980,1733501432025,-200.0,7.682e-05,2]
[344466981,1733501432035,-16687.85138633,7.682e-05,2]
[344466982,1733501432047,-29667.29135347,7.683e-05,2]
[344466983,1733501432057,-12515.88853975,7.683e-05,2]
[344466984,1733501432067,-22250.46851511,7.684e-05,2]
[344466985,1733501432080,-22250.46851511,7.684e-05,2]
[344466986,1733501432089,-12515.88853975,7.684e-05,2]
[344466987,1733501432098,-16687.85138633,7.685e-05,2]
[344466988,1733501432108,-16687.85138633,7.685e-05,2]
[344466989,1733501432118,-16687.85138633,7.685e-05,2]
[344466990,1733501432127,-200.0,7.686e-05,2]
[344466991,1733501432137,-200.0,7.686e-05,2]
[344466992,1733501432146,-12515.88853975,7.686e-05,2]
[344466993,1733501432156,-200.0,7.686e-05,2]
[344466994,1733501432166,-16687.85138633,7.686e-05,2]
[344466995,1733501432175,-7040.18730361,7.687e-05,2]
[344466996,1733501432185,-9454.61328709,7.687e-05,2]
[344466997,1733501432198,-20212.67806638,7.687e-05,2]
[344466998,1733501432207,-200.0,7.687e-05,2]
[344466999,1733501432217,-29667.29135347,7.689e-05,2]
[344467000,1733501432227,-9386.91640481,7.689e-05,2]
[344467001,1733501432236,-200.0,7.69e-05,2]
[344467002,1733501432246,-9386.91640481,7.691e-05,2]
[344467003,1733501432255,-7040.18730361,7.691e-05,2]
[344467004,1733501432265,-29667.29135347,7.693e-05,2]
[344467005,1733501432275,-9386.91640481,7.693e-05,2]
[344467006,1733501432284,-29667.29135347,7.693e-05,2]
[344467007,1733501432297,-29667.29135347,7.693e-05,2]
[344467008,1733501432307,-7040.18730361,7.694e-05,2]
[344467009,1733501432317,-12515.88853975,7.695e-05,2]
[344467010,1733501432326,-22250.46851511,7.695e-05,2]
[344467011,1733501432336,-200.0,7.695e-05,2]
[344467012,1733501432345,-7040.18730361,7.696e-05,2]
[344467013,1733501432355,-200.0,7.696e-05,2]
[344467014,1733501432364,-16687.85138633,7.697e-05,2]
[344467015,1733501432373,-22250.46851511,7.697e-05,2]
[344467016,1733501432383,-7040.18730361,7.697e-05,2]
[344467017,1733501432393,-9386.91640481,7.698e-05,2]
[344467018,1733501432402,-12515.88853975,7.698e-05,2]
[344467019,1733501432411,-12515.88853975,7.698e-05,2]
[344467020,1733501432421,-9386.91640481,7.699e-05,2]
[344467021,1733501432431,-7040.18730361,7.7e-05,2]
[344467022,1733501432440,-495.63,7.734e-05,2]
[344467023,1733501432450,-150.0,7.758e-05,2]
[344467024,1733501432459,-400.0,7.76e-05,2]
[344467025,1733501432469,-1600.0,7.778e-05,2]
[344467026,1733501432479,-750.04,7.788e-05,2]
[344467027,1733501432489,-493.72,7.853e-05,2]
[344467028,1733501432499,-492.61,8.031e-05,2]
[344467029,1733501432509,-400.0,8.037e-05,2]
[344467030,1733501432519,-1600.0,8.055e-05,2]
[344467031,1733501432528,-3150.37,8.219e-05,2]
[344467032,1733501432539,-230.76,8.219e-05,2]
[344467033,1733501432551,-1000.0,8.219e-05,2]
[344467034,1733501432561,-420.0,8.249e-05,2]
[344467035,1733501432571,-498.99,8.297e-05,2]
[344467036,1733501432581,-498.0,8.312e-05,2]
[344467037,1733501432590,-400.0,8.314e-05,2]
[344467038,1733501432600,-491.46,8.328e-05,2]
[344467039,1733501432609,-1600.0,8.333e-05,2]
[344467040,1733501432618,-508.69,8.366e-05,2]
[344467041,1733501432627,-490.28,8.418e-05,2]
[344467042,1733501432637,-1262.0,8.437e-05,2]
[344467043,1733501432647,-1126.617,8.437e-05,2]
[344467044,1733501432656,-506.068,8.437e-05,2]
[344467045,1733501432665,-1670.65,8.437e-05,2]
[344467046,1733501432675,-816.0,8.437e-05,2]
[344467047,1733501432686,-1252.0,8.437e-05,2]
[344467048,1733501432695,-3761.0,8.437e-05,2]
[344467049,1733501432704,-973.0,8.437e-05,2]
[344467050,1733501432715,-150.0,8.437e-05,2]
[344467051,1733501432725,-495.69,8.485e-05,2]
[344467052,1733501432735,-490.42,8.573e-05,2]
[344467053,1733501432744,-400.0,8.591e-05,2]
[344467054,1733501432754,-1600.0,8.61e-05,2]
[344467055,1733501432763,-500.84,8.685e-05,2]
[344467056,1733501432772,-200.0,8.74e-05,2]
[344467057,1733501432782,-750.04,8.761e-05,2]
[344467058,1733501432792,-507.34,8.83e-05,2]
[344467059,1733501432801,-587.0,9.074e-05,2]
[344467060,1733501432810,-150.0,9.08e-05,2]
[344467061,1733501432819,-686.424,9.11e-05,2]
[344467062,1733501432828,-1978.88,9.188e-05,5]
[344467063,1733501432837,-1000.0,9.247e-05,2]
[344467064,1733501432847,-900.0,9.3e-05,3]
[344467065,1733501432856,-1500.0,9.316e-05,2]
[344467066,1733501432866,-36634.7114,9.389e-05,2]
[344467067,1733501432878,-1800.0,9.4e-05,3]
[344467068,1733501432887,-188.292,9.488e-05,2]
[344467069,1733501432897,-2500.0,9.488e-05,2]
[344467070,1733501432906,-1712.562,9.488e-05,2]
[344467071,1733501432916,-14671.5494,9.489e-05,2]
[344467072,1733501432930,-2500.0,9.489e-05,2]
[344467073,1733501432939,-2700.0,9.5e-05,3]
[344467074,1733501432948,-1000.0,9.5e-05,2]
[344467075,1733501432957,-500.0,9.541e-05,2]
[344467076,1733501432967,-150.86651653,9.563e-05,2]
[344467077,1733501432975,-500.0,9.563e-05,2]
[344467078,1733501432985,-159.89872404,9.563e-05,2]
[344467079,1733501432995,-507.04250113,9.563e-05,2]
[344467080,1733501433005,-256.60810853,9.563e-05,2]
[344467081,1733501433014,-1000.0,9.587e-05,2]
[344467082,1733501433024,-2000.0,9.588e-05,2]
[344467083,1733501433034,-211807.00814603,9.588e-05,2]
[344467084,1733501433203,-884.46512075,9.588e-05,2]
[344467085,1733501433243,-2187.17598585,9.588e-05,2]
[344467086,1733501433255,-3848.38063367,9.588e-05,2]
[344467087,1733501433266,-1645.92450534,9.588e-05,2]
[344467088,1733501433390,-400.78,9.588e-05,2]
[344467089,1733501433401,-29226.26560836,9.588e-05,2]
[344467090,1733501433411,-851.89,9.588e-05,2]
[344467091,1733501433420,-658.0,9.588e-05,2]
[344467092,1733501433430,-5105.89177673,9.589e-05,2]
[344467093,1733501433564,-2753.75207664,9.589e-05,2]
[344467094,1733501433576,-665.0,9.589e-05,2]
[344467095,1733501433599,-667.530005,9.589e-05,2]
[344467096,1733501433611,-2084.81537,9.589e-05,2]
[344467102,1733501437539,-1911.000006,9.389e-05,2]
[344467103,1733501437590,-252.38729736,9.389e-05,2]
[344467104,1733501437601,-19917.95639999,9.389e-05,2]
[344467105,1733501437699,-14553.36769665,9.389e-05,2]
[344467106,1733501437708,-8723.01077163,9.589e-05,2]
[344467107,1733501437717,-14505.22141044,9.589e-05,2]
[344467108,1733501437755,-6377.3981952,9.589e-05,2]
[344467109,1733501437766,-4960.0,9.589e-05,2]
[344467110,1733501437865,-387.75680207,9.589e-05,2]
[344467112,1733501439496,-2944.84003549,9.589e-05,2]
[344467113,1733501439522,-287.13030122,9.589e-05,2]
[344467114,1733501439573,-1926.9,9.589e-05,2]
[344467115,1733501439588,-5688.24640552,9.589e-05,2]
[344467116,1733501439599,-873.17562243,9.589e-05,2]
[344467117,1733501439610,-10165.40231097,9.589e-05,2]
[344467118,1733501439622,-830.53867436,9.589e-05,2]
[344467119,1733501439730,-689.39100163,9.589e-05,2]
[344467120,1733501439743,-2213.53236661,9.589e-05,2]
[344467121,1733501439931,-1659.27537945,9.589e-05,2]
[344467122,1733501439943,-850.86,9.589e-05,2]
[344467126,1733501440291,-39995.80611913,9.589e-05,2]
[344467180,1733501442593,-932.03135323,9.589e-05,2]
[344467184,1733501442612,-8224.6500002,9.589e-05,2]
[344467192,1733501442701,-2405.94,9.589e-05,2]
[344467193,1733501442909,-225070.84867378,9.589e-05,2]
[344467194,1733501442920,-1792431.08625795,9.589e-05,2]
[344467195,1733501442954,-4733.50143908,9.589e-05,2]
[344467196,1733501442966,-3670.5251946,9.589e-05,2]
[344467197,1733501442978,-2974.56670282,9.589e-05,2]
[344467198,1733501443003,-5941.19679615,9.589e-05,2]
[344467199,1733501443015,-2378.81691074,9.589e-05,2]
[344467200,1733501443028,-13338.60330676,9.589e-05,2]
[344467201,1733501443053,-5044.375502,9.589e-05,2]
[344467202,1733501443124,-641.04593566,9.589e-05,2]
[344467208,1733501445448,-996.32490086,9.589e-05,2]
[344467209,1733501445554,-3040.6523425,9.589e-05,2]
[344467210,1733501445610,-401956.79038668,9.589e-05,2]
[344467211,1733501445621,-3849.7,9.589e-05,2]
[344467212,1733501445726,-1164.4000013,9.589e-05,2]
[344467213,1733501445737,-5015.643006,9.589e-05,2]
[344467214,1733501445763,-28810.875,9.589e-05,2]
[344467215,1733501445774,-8000.0,9.589e-05,2]
[344467221,1733501445938,-1296.06955184,9.589e-05,2]
[344467224,1733501445950,-10653.1828654,9.589e-05,2]
[344467226,1733501445963,-21281.24268992,9.589e-05,2]
[344467476,1733502506997,299850.0,0.000201,120]
[344467501,1733502609762,1317811.61754925,0.0002,120]
[344467505,1733502631717,-228.59,6.446e-05,2]
[344467506,1733502631726,-410.80624444,7e-05,2]
[344467507,1733502632013,-727.5237665,7e-05,2]
[344467508,1733502632052,-70.18061042,7e-05,2]
[344467509,1733502632062,-503.41,7.629e-05,2]
[344467510,1733502632072,-503.58,7.629e-05,2]
[344467511,1733502632081,-164.675884,7.671e-05,2]
[344467512,1733502632091,-244.534285,7.671e-05,2]
[344467513,1733502632102,-155.363856,7.671e-05,2]
[344467514,1733502632112,-3223.38276984,7.677e-05,2]
[344467515,1733502632122,-1813.15280803,7.677e-05,2]
[344467516,1733502632132,-1813.15280803,7.678e-05,2]
[344467517,1733502632141,-5730.45825749,7.679e-05,2]
[344467518,1733502632151,-4297.84369312,7.679e-05,2]
[344467519,1733502632161,-2417.53707738,7.682e-05,2]
[344467520,1733502632172,-1813.15280803,7.682e-05,2]
[344467522,1733502632181,-2417.53707738,7.683e-05,2]
[344467524,1733502632191,-4297.84369312,7.683e-05,2]
[344467526,1733502632202,-5730.45825749,7.683e-05,2]
[344467528,1733502632213,-3223.38276984,7.684e-05,2]
[344467530,1733502632223,-2417.53707738,7.684e-05,2]
[344467532,1733502632234,-4297.84369312,7.686e-05,2]
[344467534,1733502632243,-1813.15280803,7.686e-05,2]
[344467536,1733502632253,-5730.45825749,7.687e-05,2]
[344467538,1733502632263,-4297.84369312,7.688e-05,2]
[344467540,1733502632272,-2417.53707738,7.688e-05,2]
[344467541,1733502632282,-1813.15280803,7.688e-05,2]
[344467542,1733502632292,-5730.45825749,7.689e-05,2]
[344467543,1733502632303,-3223.38276984,7.689e-05,2]
[344467544,1733502632312,-3223.38276984,7.692e-05,2]
[344467545,1733502632323,-5520.9566617,7.693e-05,2]
[344467546,1733502632450,-209.50159579,7.693e-05,2]
[344467547,1733502632460,-3223.38276984,7.694e-05,2]
[344467548,1733502632469,-1813.15280803,7.694e-05,2]
[344467549,1733502632479,-4297.84369312,7.694e-05,2]
[344467550,1733502632490,-3030.14324664,7.696e-05,2]
[344467552,1733502637748,-193.2395232,7.696e-05,2]
[344467553,1733502637758,-2417.53707738,7.696e-05,2]
[344467554,1733502637767,-2417.53707738,7.697e-05,2]
[344467555,1733502637776,-2395.54930911,7.698e-05,2]
[344467556,1733502637787,-3334.90894838,7.698e-05,2]
[344467557,1733502637797,-4297.84369312,7.698e-05,2]
[344467558,1733502637806,-498.58,7.869e-05,2]
[344467559,1733502637816,-150.0,7.909e-05,2]
[344467560,1733502637825,-250.0,7.991e-05,2]
[344467561,1733502637836,-300.0,8.062e-05,2]
[344467562,1733502637845,-1800.1473084,8.063e-05,2]